{"text_format":"1","workbook":"xlsx","n_sheets":16,"sheets":["Lists1","Lists2","CIS 1","CIS 2","CIS 3","CIS 4","CIS 5","CIS 6","CIS 7","Strategies","CNPI 1-Employment","CNPI 2-Education","CNPI 3-Infrastructure-Assets","CNPI 4-Housing","CNPI 5-Health","CNPI 6-Civic Engagement"],"not_rendered":{"charts":0,"images":0,"macros":1,"external_links":1,"defined_names":17,"comments":0,"pivot_tables":0},"unopened":[],"bounds":{"document_bytes":16777216,"sheet_cells":100000,"rows_first":2000,"rows_last":500,"rows_between":2000,"halvings":0,"cell_chars":16384,"cell_head_chars":4096},"cells_cut":0,"cells_raw":0,"read":"whole","date_system":"1900"}

{"sheet":"Lists1","index":0,"n_rows":104,"n_cols":7,"rows_kept":104,"cut":false,"hidden":true,"merged":[]}
["Subrecipients",null,"Module 3 Community",null,null,"STR","CNPI"]
["Aspermont Small Business Development Center, Inc.",null,"CNPI1 Employment",null,null,"Employment Strategies (STR 1)","Counts of Change for Employment Indicators (CNPI 1)"]
["Austin HHS",null,"CNPI2 Education & Cognitive Development",null,null,"STR 1a","CNPI 1a"]
["Big Bend Community Action Committee, Inc.  ",null,"CNPI3 Infrastructure & Asset Building",null,null,"STR 1b","CNPI 1b"]
["Brazos Valley Community Action Programs",null,"CNPI4 Housing",null,null,"STR 1c","CNPI 1c"]
["Cameron and Willacy",null,"CNPI5 Health & Social/Behavioral",null,null,"STR 1d","CNPI 1d"]
["Central Texas Opportunities, Inc.",null,"CNPI6 Civic Engagement & Community Involvement Goal 2",null,null,"STR 1e","CNPI 1e"]
["Combined Community Action, Inc.",null,"CNPI6 Civic Engagement & Community Involvement Goal 3",null,null,"STR 1f","CNPI 1f"]
["Community Action Committee of Victoria Texas",null,null,null,null,"STR 1g","CNPI 1g"]
["Community Action Corporation of South Texas",null,null,null,null,"STR 1h","CNPI 1h"]
["Community Action Inc. of Central Texas ",null,"CNPI1 Employment","CNPI",null,"STR 1i","Counts of Change for Education and Cognitive Development Indicators (CNPI 2)"]
["Community Action Social Services & Education",null,"CNPI2 Education & Cognitive Development","CNPI",null,"Education and Cognitive Development Strategies (STR 2)","CNPI 2a"]
["Community Council of Greater Dallas",null,"CNPI3 Infrastructure & Asset Building","CNPI",null,"STR 2a","CNPI 2b"]
["Community Council of South Central Texas, Inc.",null,"CNPI4 Housing","CNPI",null,"STR 2b","CNPI 2c"]
["Community Services of Northeast Texas, Inc. ",null,"CNPI5 Health & Social/Behavioral","CNPI",null,"STR 2c","CNPI 2d"]
["Community Services, Inc.",null,"CNPI6 Civic Engagement & Community Involvement Goal 2","CNPI",null,"STR 2d","CNPI 2e"]
["Concho Valley Community Action Agency  ",null,"CNPI6 Civic Engagement & Community Involvement Goal 3","CNPI",null,"STR 2e","CNPI 2f"]
["Economic Action Committee of The Gulf Coast  ",null,null,null,null,"STR 2f","CNPI 2g"]
["Economic Opportunities Advancement Corporation of Planning Region XI  ",null,null,null,null,"STR 2g","CNPI 2h"]
["El Paso Community Action Program, Project BRAVO, Inc.  ",null,null,null,null,"STR 2h","CNPI 2i"]
["Fort Worth, City of, Neighborhood Services Department ",null,"Section C: Community Strategies List",null,null,"STR 2i","CNPI 2j"]
["Galveston County Community Action Council, Inc.","STR 1","Employment Strategies (STR 1)","STR",null,"STR 2j","CNPI 2k"]
["Greater East Texas Community Action Program","STR 2","Education and Cognitive Development Strategies (STR 2)","STR",null,"STR 2k","CNPI 2l"]
["Gulf Coast Community Services Association","STR 3","Infrastructure and Asset Building Strategies (STR 3)","STR",null,"STR 2l","CNPI 2m"]
["Hidalgo County Community Services Agency  ","STR 4","Housing Strategies (STR 4)","STR",null,"Infrastructure and Asset Building Strategies (STR 3)","CNPI 2n"]
["Hill Country Community Action Association, Inc. ","STR 5","Health and Social/Behavioral Strategies (STR 5)","STR",null,"STR 3a","CNPI 2o"]
["Lubbock, City of, Community Development Department ","STR 6 G2","Civic Engagement and Community Involvement Strategies- Goal 2 (STR 6)","STR",null,"STR 3b","Counts of Change for Infrastructure and Asset Building Indicators (CNPI 3)"]
["Nueces County Community Action Agency","STR 6 G3","Civic Engagement and Community Involvement Strategies — Goal 3 (STR 6)","STR",null,"STR 3c","CNPI 3a"]
["Panhandle Community Services  ","STR 7","Community Support Strategies (STR 7)","STR",null,"STR 3d","CNPI 3a.1"]
["Pecos County Community Action Agency","STR 8","Emergency Management Strategies (STR 8)","STR",null,"STR 3e","CNPI 3a.2"]
["Rolling Plains Management Corporation ",null,null,null,null,"STR 3f","CNPI 3a.3"]
["City of San Antonio Department of Human Services",null,null,null,null,"STR 3g","CNPI 3a.4"]
["South Plains Community Action Association, Inc. ",null,null,null,null,"STR 3h","CNPI 3a.5"]
["South Texas Development Council",null,null,null,null,"STR 3i","CNPI 3a.6"]
["Southeast Texas Regional Planning Commission",null,null,null,null,"STR 3j","CNPI 3b"]
["Texas Neighborhood Services  ",null,null,null,null,"STR 3k","CNPI 3b.1"]
["Texoma Council of Governments ",null,null,null,null,"STR 3l","CNPI 3b.2"]
["Tri-County Community Action, Inc.",null,null,null,null,"STR 3m","CNPI 3b.3"]
["Webb County Community Action Agency  ",null,null,null,null,"STR 3n","CNPI 3b.4"]
["West Texas Opportunities, Inc. ",null,null,null,null,"STR 3o","CNPI 3c"]
["Williamson-Burnet County Opportunities, Inc.",null,null,null,null,"STR 3p","CNPI 3d"]
[null,null,null,null,null,"STR 3q","CNPI 3e"]
[null,null,null,null,null,"STR 3r","CNPI 3f"]
[null,null,null,null,null,"STR 3s","CNPI 3g"]
[null,null,null,null,null,"Housing Strategies (STR 4)","CNPI 3h"]
[null,null,null,null,null,"STR 4a","CNPI 3i"]
[null,null,null,null,null,"STR 4b","Counts of Change for Housing Indicators (CNPI 4)"]
[null,null,null,null,null,"STR 4c","CNPI 4a"]
[null,null,null,null,null,"STR 4d","CNPI 4b"]
[null,null,null,null,null,"STR 4e","CNPI 4c"]
[null,null,null,null,null,"STR 4f","CNPI 4d"]
[null,null,null,null,null,"STR 4g","CNPI 4e"]
[null,null,null,null,null,"STR 4h","CNPI 4f"]
[null,null,null,null,null,"STR 4i","CNPI 4g"]
[null,null,null,null,null,"STR 4j","CNPI 4h"]
[null,null,null,null,null,"Health and Social/Behavioral Strategies (STR 5)","CNPI 4i"]
[null,null,null,null,null,"STR 5a","Counts of Change for Health and Social/Behavioral Indicators (CNPI 5)"]
[null,null,null,null,null,"STR 5b","CNPI 5a"]
[null,null,null,null,null,"STR 5c","CNPI 5b"]
[null,null,null,null,null,"STR 5d","CNPI 5c"]
[null,null,null,null,null,"STR 5e","CNPI 5d"]
[null,null,null,null,null,"STR 5f","CNPI 5e"]
[null,null,null,null,null,"STR 5g","CNPI 5f"]
[null,null,null,null,null,"STR 5h","CNPI 5g"]
[null,null,null,null,null,"STR 5i","CNPI 5h"]
[null,null,null,null,null,"STR 5j","CNPI 5i"]
[null,null,null,null,null,"STR 5k","CNPI 5j"]
[null,null,null,null,null,"STR 5l","CNPI 5k"]
[null,null,null,null,null,"STR 5m","CNPI 5l"]
[null,null,null,null,null,"STR 5n","CNPI 5m"]
[null,null,null,null,null,"Civic Engagement and Community Involvement Strategies Goal 2 (STR 6)","CNPI 5n"]
[null,null,null,null,null,"STR 6 G2a","CNPI 5o"]
[null,null,null,null,null,"STR 6 G2b","CNPI 5p"]
[null,null,null,null,null,"STR 6 G2c","CNPI 5q"]
[null,null,null,null,null,"STR 6 G2d","CNPI 5r"]
[null,null,null,null,null,"STR 6 G2e","CNPI 5s"]
[null,null,null,null,null,"STR 6 G2f","CNPI 5t"]
[null,null,null,null,null,"STR 6 G2g","CNPI 5u"]
[null,null,null,null,null,"STR 6 G2h","CNPI 5v"]
[null,null,null,null,null,"STR 6 G2i","Rates of Change for Civic Engagement and Community Involvement Indicators - Goal 2 (CNPI 6)"]
[null,null,null,null,null,"STR 6 G2j","CNPI 6 G2a"]
[null,null,null,null,null,"STR 6 G2k","CNPI 6 G2b"]
[null,null,null,null,null,"Civic Engagement and Community Involvement Strategies Goal 3 (STR 6)","CNPI 6 G2c"]
[null,null,null,null,null,"STR 6 G3a","Rates of Change for Civic Engagement and Community Involvement Indicators - Goal 3 (CNPI 6)"]
[null,null,null,null,null,"STR 6 G3b","CNPI 6 G3a "]
[null,null,null,null,null,"STR 6 G3c","CNPI 6 G3b"]
[null,null,null,null,null,"STR 6 G3d"]
[null,null,null,null,null,"STR 6 G3e"]
[null,null,null,null,null,"STR 6 G3f"]
[null,null,null,null,null,"STR 6 G3g"]
[null,null,null,null,null,"Community Support Strategies (STR 7)"]
[null,null,null,null,null,"STR 7a"]
[null,null,null,null,null,"STR 7b"]
[null,null,null,null,null,"STR 7c"]
[null,null,null,null,null,"STR 7d"]
[null,null,null,null,null,"STR 7e"]
[null,null,null,null,null,"STR 7f"]
[null,null,null,null,null,"Emergency Management Strategies (STR 8)"]
[null,null,null,null,null,"STR 8a"]
[null,null,null,null,null,"STR 8b"]
[null,null,null,null,null,"STR 8c"]
[null,null,null,null,null,"STR 8d"]
[null,null,null,null,null,"STR 8e"]
[null,null,null,null,null,"STR 8f"]

{"sheet":"Lists2","index":1,"n_rows":85,"n_cols":3,"rows_kept":85,"cut":false,"hidden":true,"merged":[]}
["Category","Subcategory","CNPI1"]
["CNPI1 Employment","CNPI1","CNPI 1a Number of jobs created to increase opportunities for people with low incomes in the identified community."]
["CNPI2 Education & Cognitive Development","CNPI2","CNPI 1b Number of job opportunities maintained in the identified community.            "]
["CNPI3 Infrastructure & Asset Building","CNPI3","CNPI 1c Number of “living wage ” jobs created in the identified community*."]
["CNPI4 Housing","CNPI4","CNPI 1d Number of “living wage”  jobs maintained in the  identified community*. "]
["CNPI5 Health & Social/Behavioral","CNPI5","CNPI 1e Number of jobs created in the identified community with a benefit package. "]
["CNPI6 Civic Engagement & Community Involvement Goal 2","CNPI6G2","CNPI 1f Percent decrease of the unemployment rate."]
["CNPI6 Civic Engagement & Community Involvement Goal 3","CNPI6G3","CNPI 1g Percent decrease of the youth unemployment rate."]
[null,null,"CNPI 1h Percent decrease of the underemployment rate."]
["CNPI1","STR_2","CNPI2"]
["CNPI2","STR_2","CNPI 2a Number of accessible and affordable early childhood or pre-school education assets or resource added to the identified community. "]
["CNPI3","STR_2","CNPI 2b Number of accredited or licensed affordable child care facilities added in the identified community. "]
["CNPI4","STR_2","CNPI 2c Number of new Early Childhood Screenings offered to children (ages 0-5) of families with low-incomes in the identified community. "]
["CNPI5","STR_2","CNPI 2d Number of accessible and affordable education assets or resources added for school age children in the identified community.  (e.g., academic, enrichment activities, before/after school care, summer programs)"]
["CNPI6G2","STR_2","CNPI 2e Number of accessible and affordable post secondary education assets or resources added for newly graduating youth in the identified community.  (e.g. college tuition, scholarships, vocational training, etc.) "]
["CNPI6G3","STR_2","CNPI 2f Number of accessible and affordable basic or secondary education assets or resources added for adults in the identified community.  (e.g. literacy, ESL, ABE/GED, etc.) "]
[null,null,"CNPI 2g Percent increase of children in the identified community who are kindergarten ready. "]
["Check",null,"CNPI 2h Percent increase of children in the identified community at (or above) the basic reading level."]
["P",null,"CNPI 2i Percent increase of children in the identified community at (or above) the basic math level."]
[null,null,"CNPI 2j Percent increase in high school (or high school equivalency) graduation rate in the  identified community."]
[null,null,"CNPI 2k Percent increase of the rate of youth in the identified community  who attend post-secondary education."]
[null,null,"CNPI 2l Percent increase of the rate of youth in the identified community who graduate from post-secondary education. "]
[null,null,"CNPI 2m Percent increase of adults in the identified community who attend post-secondary education. "]
[null,null,"CNPI 2n Percent increase of adults in the  identified community who graduate from post-secondary education."]
[null,null,"CNPI 2o Percent increase in the adult literacy rate in the identified community. "]
[null,null,"CNPI3"]
[null,null,"CNPI 3a Number of new accessible assets/resources created in the identified community:"]
[null,null,"CNPI 3a.1  Commercial"]
[null,null,"CNPI 3a.2  Financial"]
[null,null,"CNPI 3a.3  Technological/ Communications (e.g. broadband)"]
[null,null,"CNPI 3a.4  Transportation"]
[null,null,"CNPI 3a.5  Recreational (e.g. parks, gardens, libraries)"]
[null,null,"CNPI 3a.6  Other Public Assets/Physical Improvements"]
[null,null,"CNPI 3b  Number of existing assets/resources made accessible to the identified community:"]
[null,null,"CNPI 3b.1   Commercial"]
[null,null,"CNPI 3b.2   Financial"]
[null,null,"CNPI 3b.3   Technological/ Communications (e.g. broadband)"]
[null,null,"CNPI 3b.4   Transportation"]
[null,null,"CNPI 3b.5  Recreational (e.g. parks, gardens, libraries)"]
[null,null,"CNPI 3b.6  Other Public Assets/Physical Improvements"]
[null,null,"CNPI 3c Percent decrease of abandoned or neglected buildings in the identified community."]
[null,null,"CNPI 3d Percent decrease in emergency response time measured in minutes in the identified community. (EMT, Police, Fire, etc.)."]
[null,null,"CNPI 3e Percent decrease of predatory lenders and/or lending practices in the identified community."]
[null,null,"CNPI 3f Percent decrease of environmental threats to households (toxic soil, radon, lead, air quality, quality of drinking water, etc.) in the identified community."]
[null,null,"CNPI 3g Percent increase of transportation services in the identified community."]
[null,null,"CNPI4"]
[null,null,"CNPI 4a Number of safe and affordable housing units developed in the identified community (e.g. built or set aside units for people with low incomes)."]
[null,null,"CNPI 4b Number of safe and affordable housing units maintained  and/or improved through WAP or other rehabilitation efforts in the identified community. "]
[null,null,"CNPI 4c Number of shelter beds created in the identified community. "]
[null,null,"CNPI 4d Number of shelter beds maintained in the identified community. "]
[null,null,"CNPI 4e Percent decrease in the rate of homelessness in the identified community. "]
[null,null,"CNPI 4f Percent decrease in the foreclosure rate in the identified community."]
[null,null,"CNPI 4g Percent increase in the rate of home ownership of people with low incomes in the identified community."]
[null,null,"CNPI 4h Percent increase of affordable housing in the identified community."]
[null,null,"CNPI 4i Percent increase of shelter beds in the identified community."]
[null,null,"CNPI5"]
[null,null,"CNPI 5a Number of accessible and affordable physical health assets or resources created in the identified community. "]
[null,null,"CNPI 5b Number of accessible and affordable behavioral and mental health assets or resources created in the identified community.  "]
[null,null,"CNPI 5c Number of public safety assets and resources created in the identified community.   "]
[null,null,"CNPI 5d Number of accessible and affordable healthy food resources created in the identified community."]
[null,null,"CNPI 5e Number of activities designed to improve police and community relations within the identified community."]
[null,null,"CNPI 5f  Percent decrease in infant mortality rate in the identified community."]
[null,null,"CNPI 5g  Percent decrease in childhood obesity rate in the identified community. "]
[null,null,"CNPI 5h  Percent decrease in adult obesity rate in the identified community."]
[null,null,"CNPI 5i  Percent increase in child immunization rate in the identified community. "]
[null,null,"CNPI 5j  Percent decrease in uninsured families in the identified community. "]
[null,null,"CNPI 5k  Percent decrease in the teen pregnancy rate in the identified community."]
[null,null,"CNPI 5l  Percent decrease in unplanned pregnancies in the identified community."]
[null,null,"CNPI 5m  Percent decrease in substance abuse rate in the identified community.(e.g. cigarettes, prescription drugs, narcotics, alcohol). "]
[null,null,"CNPI 5n  Percent decrease in domestic violence rate in the identified community."]
[null,null,"CNPI 5o  Percent decrease in the child abuse rate in the identified community."]
[null,null,"CNPI 5p  Percent decrease in the child neglect rate in the identified community."]
[null,null,"CNPI 5q  Percent decrease in the elder abuse rate in the identified community. "]
[null,null,"CNPI 5r  Percent decrease in the elder neglect rate in the identified community. "]
[null,null,"CNPI 5s  Percent decrease in recidivism rate in the identified community."]
[null,null,"CNPI 5t  Percent decrease in non-violent crime rate in the identified community."]
[null,null,"CNPI 5u  Percent decrease in violent crime rate in the identified community."]
[null,null,"CNPI 5v  Percent decrease in teens involved with the juvenile court system in the identified community."]
[null,null,"CNPI6G2"]
[null,null,"CNPI 6 G2a Percent increase of donated time to support the CSBG Eligible Entity's delivery of services and/or implementation of strategies to address conditions of poverty in the identified community. "]
[null,null,"CNPI 6 G2b Percent increase of donated resources to support the CSBG Eligible Entity's delivery of services and/or implementation of strategies to address conditions of poverty in the identified community. "]
[null,null,"CNPI 6 G2c  Percent increase of people participating in public hearings, policy forums, community planning, or other advisory boards related to the CSBG Eligible Entity's delivery of service and/or implementation of strategies to address conditions of poverty in the identified community."]
[null,null,"CNPI6G3"]
[null,null,"CNPI 6 G3a  Percent increase of people with low incomes who support the CSBG Eligible Entity's delivery of service and/or implementation of strategies to address conditions of poverty in the identified community. "]
[null,null,"CNPI 6 G3b Percent increase of people with low incomes who acquire and maintain leadership roles with the CSBG Eligible Entity or other organizations within the identified community. "]

{"sheet":"CIS 1","index":2,"n_rows":18,"n_cols":5,"rows_kept":18,"cut":false,"hidden":false,"merged":[[13,0,17,0],[0,4,2,4],[2,0,12,0],[1,2,1,3],[1,0,1,1],[0,2,0,3],[0,0,0,1]]}
["Subrecipient:",null,null,null,"Initiative a top 5 need in your CAP?"]
["CIS 1",null,"Community Initiative Status (CIS) Form "]
["Planning",1,"Initiative Name"]
[null,2,"Initiative Year"]
[null,3,"Problem Identification",null,"If Yes, which need?"]
[null,4,"Goal/Agenda"]
[null,5,"Issue/CSBG Community Domains"]
[null,6,"Ultimate Expected Outcome"]
[null,7,"Identified Community"]
[null,8,"Expected Duration"]
[null,9,"Partnership Type"]
[null,10,"Partners"]
[null,11,"Strategy(ies)"]
["Reporting and Achievement of Results",12,"Progress on Outcomes/Indicators"]
[null,13,"Impact of Outcomes"]
[null,14,"Outcomes/Indicators to Report"]
[null,15,"Final Status",null," Percent Achieved"]
[null,16,"Lessons Learned"]

{"sheet":"CIS 2","index":3,"n_rows":18,"n_cols":5,"rows_kept":18,"cut":false,"hidden":false,"merged":[[0,4,2,4],[2,0,12,0],[13,0,17,0],[0,2,0,3],[0,0,0,1],[1,0,1,1],[1,2,1,3]]}
["Subrecipient:",null,{"$f":"'CIS 1'!C1","v":0},null,"Initiative a top 5 need in your CAP?"]
["CIS 2",null,"Community Initiative Status (CIS) Form "]
["Planning",1,"Initiative Name"]
[null,2,"Initiative Year"]
[null,3,"Problem Identification",null,"If Yes, which need?"]
[null,4,"Goal/Agenda"]
[null,5,"Issue/CSBG Community Domains"]
[null,6,"Ultimate Expected Outcome"]
[null,7,"Identified Community"]
[null,8,"Expected Duration"]
[null,9,"Partnership Type"]
[null,10,"Partners"]
[null,11,"Strategy(ies)"]
["Reporting and Achievement of Results",12,"Progress on Outcomes/Indicators"]
[null,13,"Impact of Outcomes"]
[null,14,"Outcomes/Indicators to Report"]
[null,15,"Final Status",null," Percent Achieved"]
[null,16,"Lessons Learned"]

{"sheet":"CIS 3","index":4,"n_rows":18,"n_cols":5,"rows_kept":18,"cut":false,"hidden":false,"merged":[[1,0,1,1],[1,2,1,3],[2,0,12,0],[0,4,2,4],[13,0,17,0],[0,2,0,3],[0,0,0,1]]}
["Subrecipient:",null,{"$f":"'CIS 1'!C1","v":0},null,"Initiative a top 5 need in your CAP?"]
["CIS 3",null,"Community Initiative Status (CIS) Form "]
["Planning",1,"Initiative Name"]
[null,2,"Initiative Year"]
[null,3,"Problem Identification",null,"If Yes, which need?"]
[null,4,"Goal/Agenda"]
[null,5,"Issue/CSBG Community Domains"]
[null,6,"Ultimate Expected Outcome"]
[null,7,"Identified Community"]
[null,8,"Expected Duration"]
[null,9,"Partnership Type"]
[null,10,"Partners"]
[null,11,"Strategy(ies)"]
["Reporting and Achievement of Results",12,"Progress on Outcomes/Indicators"]
[null,13,"Impact of Outcomes"]
[null,14,"Outcomes/Indicators to Report"]
[null,15,"Final Status",null," Percent Achieved"]
[null,16,"Lessons Learned"]

{"sheet":"CIS 4","index":5,"n_rows":18,"n_cols":5,"rows_kept":18,"cut":false,"hidden":false,"merged":[[1,0,1,1],[1,2,1,3],[2,0,12,0],[0,4,2,4],[13,0,17,0],[0,0,0,1],[0,2,0,3]]}
["Subrecipient:",null,{"$f":"'CIS 1'!C1:D1","v":0},null,"Initiative a top 5 need in your CAP?"]
["CIS 4",null,"Community Initiative Status (CIS) Form "]
["Planning",1,"Initiative Name"]
[null,2,"Initiative Year"]
[null,3,"Problem Identification",null,"If Yes, which need?"]
[null,4,"Goal/Agenda"]
[null,5,"Issue/CSBG Community Domains"]
[null,6,"Ultimate Expected Outcome"]
[null,7,"Identified Community"]
[null,8,"Expected Duration"]
[null,9,"Partnership Type"]
[null,10,"Partners"]
[null,11,"Strategy(ies)"]
["Reporting and Achievement of Results",12,"Progress on Outcomes/Indicators"]
[null,13,"Impact of Outcomes"]
[null,14,"Outcomes/Indicators to Report"]
[null,15,"Final Status",null," Percent Achieved"]
[null,16,"Lessons Learned"]

{"sheet":"CIS 5","index":6,"n_rows":18,"n_cols":5,"rows_kept":18,"cut":false,"hidden":false,"merged":[[13,0,17,0],[0,4,2,4],[0,0,0,1],[0,2,0,3],[2,0,12,0],[1,0,1,1],[1,2,1,3]]}
["Subrecipient:",null,{"$f":"'CIS 1'!C1:D1","v":0},null,"Initiative a top 5 need in your CAP?"]
["CIS 5",null,"Community Initiative Status (CIS) Form "]
["Planning",1,"Initiative Name"]
[null,2,"Initiative Year"]
[null,3,"Problem Identification",null,"If Yes, which need?"]
[null,4,"Goal/Agenda"]
[null,5,"Issue/CSBG Community Domains"]
[null,6,"Ultimate Expected Outcome"]
[null,7,"Identified Community"]
[null,8,"Expected Duration"]
[null,9,"Partnership Type"]
[null,10,"Partners"]
[null,11,"Strategy(ies)"]
["Reporting and Achievement of Results",12,"Progress on Outcomes/Indicators"]
[null,13,"Impact of Outcomes"]
[null,14,"Outcomes/Indicators to Report"]
[null,15,"Final Status",null," Percent Achieved"]
[null,16,"Lessons Learned"]

{"sheet":"CIS 6","index":7,"n_rows":18,"n_cols":5,"rows_kept":18,"cut":false,"hidden":false,"merged":[[13,0,17,0],[0,0,0,1],[0,2,0,3],[0,4,2,4],[1,0,1,1],[1,2,1,3],[2,0,12,0]]}
["Subrecipient:",null,{"$f":"'CIS 1'!C1:D1","v":0},null,"Initiative a top 5 need in your CAP?"]
["CIS 6",null,"Community Initiative Status (CIS) Form "]
["Planning",1,"Initiative Name"]
[null,2,"Initiative Year"]
[null,3,"Problem Identification",null,"If Yes, which need?"]
[null,4,"Goal/Agenda"]
[null,5,"Issue/CSBG Community Domains"]
[null,6,"Ultimate Expected Outcome"]
[null,7,"Identified Community"]
[null,8,"Expected Duration"]
[null,9,"Partnership Type"]
[null,10,"Partners"]
[null,11,"Strategy(ies)"]
["Reporting and Achievement of Results",12,"Progress on Outcomes/Indicators"]
[null,13,"Impact of Outcomes"]
[null,14,"Outcomes/Indicators to Report"]
[null,15,"Final Status",null," Percent Achieved"]
[null,16,"Lessons Learned"]

{"sheet":"CIS 7","index":8,"n_rows":18,"n_cols":5,"rows_kept":18,"cut":false,"hidden":false,"merged":[[13,0,17,0],[0,0,0,1],[0,2,0,3],[0,4,2,4],[1,0,1,1],[1,2,1,3],[2,0,12,0],[16,4,17,4]]}
["Subrecipient:",null,{"$f":"'CIS 1'!C1:D1","v":0},null,"Initiative a top 5 need in your CAP?"]
["CIS 7",null,"Community Initiative Status (CIS) Form "]
["Planning",1,"Initiative Name"]
[null,2,"Initiative Year"]
[null,3,"Problem Identification",null,"If Yes, which need?"]
[null,4,"Goal/Agenda"]
[null,5,"Issue/CSBG Community Domains"]
[null,6,"Ultimate Expected Outcome"]
[null,7,"Identified Community"]
[null,8,"Expected Duration"]
[null,9,"Partnership Type"]
[null,10,"Partners"]
[null,11,"Strategy(ies)"]
["Reporting and Achievement of Results",12,"Progress on Outcomes/Indicators"]
[null,13,"Impact of Outcomes"]
[null,14,"Outcomes/Indicators to Report",null," Percent Achieved"]
[null,15,"Final Status"]
[null,16,"Lessons Learned"]

{"sheet":"Strategies","index":9,"n_rows":104,"n_cols":3,"rows_kept":104,"cut":false,"hidden":false,"merged":[[82,1,82,2],[90,1,90,2],[97,1,97,2],[11,1,11,2],[1,1,1,2],[24,1,24,2],[44,1,44,2],[55,1,55,2],[70,1,70,2]]}
["NPIs","Community Strategies List","Select, if used"]
["STR 1","Employment Strategies (STR 1)"]
["STR 1a","Minimum/Living Wage Campaign "]
["STR 1b","Job Creation/Employment Generation "]
["STR 1c","Job Fairs"]
["STR 1d","Earned Income Tax Credit (EITC) Promotion"]
["STR 1e","Commercial Space Development"]
["STR 1f","Employer Education "]
["STR 1g","Employment Policy Changes"]
["STR 1h","Employment Legislative Changes"]
["STR 1i","Other Employment Strategy: (please specify)"]
["STR 2","Education and Cognitive Development Strategies (STR 2)"]
["STR 2a","Preschool for All Campaign"]
["STR 2b","Charter School Development"]
["STR 2c","After School Enrichment Activities Promotion"]
["STR 2d","Pre K-College/Community College Support "]
["STR 2e","Children’s Trust Fund Creation"]
["STR 2f","Scholarship Creation"]
["STR 2g","Child Tax Credit (CTC) Promotion "]
["STR 2h","Adoption Child Care Quality Rating "]
["STR 2i","Adult Education Establishment"]
["STR 2j","Education and Cognitive Development Policy Changes"]
["STR 2k","Education and Cognitive Development Legislative Changes"]
["STR 2l","Other Education and Cognitive Development Strategy: (please specify)"]
["STR 3","Infrastructure and Asset Building Strategies (STR 3)"]
["STR 3a","Cultural Asset Creation"]
["STR 3b","Police/Community Relations Campaign"]
["STR 3c","Neighborhood Safety Watch Programs"]
["STR 3d","Anti-Predatory Lending Campaign"]
["STR 3e","Asset Building and Savings Promotion "]
["STR 3f","Develop/Build/Rehab Spaces  "]
["STR 3g","Maintain or Host Income Tax Preparation Sites"]
["STR 3h","Community-Wide Data Collection Systems Development"]
["STR 3i","Local 211 or Resource/Referral System Development"]
["STR 3j","Water/Sewer System Development "]
["STR 3k","Community Financial Institution Creation"]
["STR 3l","Infrastructure Planning Coalition"]
["STR 3m","Park or Recreation Creation and Maintenance "]
["STR 3n","Rehabilitation/Weatherization of Housing Stock  "]
["STR 3o","Community Center/Community Facility Establishment"]
["STR 3p","Asset Limit Barriers for Benefits Policy Changes"]
["STR 3q","Infrastructure and Asset Building Policy Changes"]
["STR 3r","Infrastructure and Asset Building Legislative Changes"]
["STR 3s","Other Infrastructure and Asset Building Strategy: (please specify)"]
["STR 4","Housing Strategies (STR 4)"]
["STR 4a","End Chronic Homelessness Campaign"]
["STR 4b","New Affordable Single Unit Housing Creation "]
["STR 4c","New Affordable Multi- Unit Housing Creation (Single Resident Occupancy (SRO), temporary housing,  transitional housing)"]
["STR 4d","Tenants’ Rights Campaign"]
["STR 4e","New Shelters Creation (including day shelters and domestic violence shelters)"]
["STR 4f","Housing or Land Trust Creation"]
["STR 4g","Building Codes Campaign"]
["STR 4h","Housing Policy Changes"]
["STR 4i","Housing Legislative Changes "]
["STR 4j","Other Housing Strategy: (please specify)"]
["STR 5","Health and Social/Behavioral Strategies (STR 5)"]
["STR 5a","Health Specific Campaign"]
["STR 5b","Farmers Market or Community Garden Development"]
["STR 5c","Grocery Store Development"]
["STR 5d","Gun Safety/Control Campaign"]
["STR 5e","Healthy Food Campaign"]
["STR 5f","Nutrition Education Collaborative"]
["STR 5g","Food Bank Development"]
["STR 5h","Domestic Violence Court Development"]
["STR 5i","Drug Court Development"]
["STR 5j","Alternative Energy Source Development"]
["STR 5k","Develop or Maintain a Health Clinic"]
["STR 5l","Health and Social/Behavioral Development Policy Changes"]
["STR 5m","Health and Social/Behavioral Development Legislative Changes"]
["STR 5n","Other Health and Social/Behavioral Development Strategy: (please specify)"]
["STR 6 G2","Civic Engagement and Community Involvement Strategies- Goal 2 (STR 6)"]
["STR 6 G2a","Development of Health and Social Service Provider Partnerships "]
["STR 6 G2b","Recruiting and Coordinating Community Volunteers"]
["STR 6 G2c","Poverty Simulations"]
["STR 6 G2d","Attract Capital Investments"]
["STR 6 G2e","Build/Support Increased Equity "]
["STR 6 G2f","Equity Awareness Campaign "]
["STR 6 G2g","Coordinated Community-wide Needs Assessment"]
["STR 6 G2h","Civic Engagement and Community Involvement in Advocacy Efforts"]
["STR 6 G2i","Civic Engagement Policy Changes "]
["STR 6 G2j","Civic Engagement Legislative Changes "]
["STR 6 G2k","Other Civic Engagement and Community Involvement Strategy: (please specify)"]
["STR 6 G3","Civic Engagement and Community Involvement Strategies — Goal 3 (STR 6)"]
["STR 6 G3a","Empowerment of Individuals/Families with Low-Incomes "]
["STR 6 G3b","Campaign to Ensure Individuals with Low-Incomes are Represented on Local Governing Bodies "]
["STR 6 G3c","Social Capital Building Campaign for Individuals/Families with Low-Incomes"]
["STR 6 G3d","Campaign for Volunteer Placement and Coordination "]
["STR 6 G3e","Civic Engagement Policy Changes "]
["STR 6 G3f","Civic Engagement Legislative Changes "]
["STR 6 G3g","Other Civic Engagement and Community Involvement Strategy: (please specify)"]
["STR 7","Community Support Strategies (STR 7)"]
["STR 7a","Off-Hours (Non-Traditional Hours) Child Care Development"]
["STR 7b","Transportation System Development"]
["STR 7c","Transportation Services Coordination and Support"]
["STR 7d","Community Support Policy Changes"]
["STR 7e","Community Support Legislative Changes "]
["STR 7f","Other Community Support Strategy: (please specify)"]
["STR 8","Emergency Management Strategies (STR 8)"]
["STR 8a","State or Local Emergency Management Board Enhancement"]
["STR 8b","Community wide Emergency Disaster Relief Service Creation"]
["STR 8c","Disaster Preparation Planning"]
["STR 8d","Emergency Management Policy Changes"]
["STR 8e","Emergency Management Legislative Changes "]
["STR 8f","Other Emergency Management Strategy: (please specify)"]

{"sheet":"CNPI 1-Employment","index":10,"n_rows":12,"n_cols":10,"rows_kept":12,"cut":false,"hidden":false,"merged":[[8,1,8,2],[9,1,9,2],[10,1,10,2],[11,1,11,2],[0,1,0,9]]}
["Subrecipient:",{"$f":"'CIS 1'!C1","v":0}]
["CNPI 1"," Counts of Change for Employment Indicators (CNPI 1)","I.)  Identified Community","II.)  Target \n#","1st quarter Results\n#","2nd quarter Results\n#","3rd quarter Results\n#","4th quarter Results\n#","Cumulative","IV.) Performance target accuracy \n(% auto calculated)"]
["CNPI 1a","Number of jobs created to increase opportunities for people with low incomes in the identified community.",null,null,null,null,null,null,{"$f":"E3+F3+G3+H3","v":0},{"$f":"I3/D3","v":{"$error":"#DIV/0!"}}]
["CNPI 1b","Number of job opportunities maintained in the identified community.            ",null,null,null,null,null,null,{"$f":"E4+F4+G4+H4","v":0},{"$f":"I4/D4","v":{"$error":"#DIV/0!"}}]
["CNPI 1c","Number of “living wage ” jobs created in the identified community*.",null,null,null,null,null,null,0,{"$error":"#DIV/0!"}]
["CNPI 1d","Number of “living wage”  jobs maintained in the  identified community*. ",null,null,null,null,null,null,0,{"$error":"#DIV/0!"}]
["CNPI 1e","Number of jobs created in the identified community with a benefit package. ",null,null,null,null,null,null,0,{"$error":"#DIV/0!"}]
[]
["CNPI 1","Rates of Change for Employment Indicators  (CNPI 1)",null,"I.)  Identified Community","II.) Baseline existing starting point used for comparisons \n(%)","III.)  Target \n(%)","IV.)  Expected % change from baseline \n(Target %  auto calculated) ","V.)  Actual Results\n(%)","VI.)  Actual % change from baseline \n(% auto calculated) ","VII.) Performance target accuracy\n(% auto calculated)"]
["CNPI 1f","Percent decrease of the unemployment rate.",null,null,null,null,{"$f":"ROUND((F10-E10)/E10,2)","v":{"$error":"#DIV/0!"}},null,{"$f":"ROUND((H10-E10)/E10,2)","v":{"$error":"#DIV/0!"}},{"$f":"ROUND((H10-E10)/(F10-E10),2)","v":{"$error":"#DIV/0!"}}]
["CNPI 1g","Percent decrease of the youth unemployment rate.",null,null,null,null,{"$f":"ROUND((F11-E11)/E11,2)","v":{"$error":"#DIV/0!"}},null,{"$f":"ROUND((H11-E11)/E11,2)","v":{"$error":"#DIV/0!"}},{"$f":"ROUND((H11-E11)/(F11-E11),2)","v":{"$error":"#DIV/0!"}}]
["CNPI 1h","Percent decrease of the underemployment rate.",null,null,null,null,{"$f":"ROUND((F12-E12)/E12,2)","v":{"$error":"#DIV/0!"}},null,{"$f":"ROUND((H12-E12)/E12,2)","v":{"$error":"#DIV/0!"}},{"$f":"ROUND((H12-E12)/(F12-E12),2)","v":{"$error":"#DIV/0!"}}]

{"sheet":"CNPI 2-Education","index":11,"n_rows":19,"n_cols":10,"rows_kept":19,"cut":false,"hidden":false,"merged":[[0,1,0,9],[9,1,9,2],[10,1,10,2],[11,1,11,2],[12,1,12,2],[18,1,18,2],[13,1,13,2],[14,1,14,2],[15,1,15,2],[16,1,16,2],[17,1,17,2]]}
["Subrecipient:",{"$f":"'CIS 1'!C1","v":0}]
["CNPI 2","Counts of Change for Education and Cognitive Development Indicators (CNPI 2)","I.)  Identified Community","II.)  Target \n#","1st quarter Results\n#","2nd quarter Results\n#","3rd quarter Results\n#","4th quarter Results\n#","Cumulative","IV.) Performance target accuracy \n(% auto calculated)"]
["CNPI 2a","Number of accessible and affordable early childhood or pre-school education assets or resource added to the identified community. ",null,null,null,null,null,null,{"$f":"E3+F3+G3+H3","v":0},{"$f":"I3/D3","v":{"$error":"#DIV/0!"}}]
["CNPI 2b","Number of accredited or licensed affordable child care facilities added in the identified community. ",null,null,null,null,null,null,{"$f":"E4+F4+G4+H4","v":0},{"$f":"I4/D4","v":{"$error":"#DIV/0!"}}]
["CNPI 2c","Number of new Early Childhood Screenings offered to children (ages 0-5) of families with low-incomes in the identified community. ",null,null,null,null,null,null,0,{"$error":"#DIV/0!"}]
["CNPI 2d","Number of accessible and affordable education assets or resources added for school age children in the identified community.  (e.g., academic, enrichment activities, before/after school care, summer programs)",null,null,null,null,null,null,0,{"$error":"#DIV/0!"}]
["CNPI 2e","Number of accessible and affordable post secondary education assets or resources added for newly graduating youth in the identified community.  (e.g. college tuition, scholarships, vocational training, etc.) ",null,null,null,null,null,null,0,{"$error":"#DIV/0!"}]
["CNPI 2f","Number of accessible and affordable basic or secondary education assets or resources added for adults in the identified community.  (e.g. literacy, ESL, ABE/GED, etc.) ",null,null,null,null,null,null,{"$f":"E8+F8+G8+H8","v":0},{"$f":"I8/D8","v":{"$error":"#DIV/0!"}}]
[]
["CNPI 2","Rates of Change for Education and Cognitive Development Indicators (CNPI 2)",null,"I.)  Identified Community","II.) Baseline existing starting point used for comparisons \n(%)","III.)  Target \n(%)","IV.)  Expected % change from baseline \n(Target %  auto calculated) ","V.)  Actual Results\n(%)","VI.)  Actual % change from baseline \n(% auto calculated) ","VII.) Performance target accuracy\n(% auto calculated)"]
["CNPI 2g","Percent increase of children in the identified community who are kindergarten ready. ",null,null,null,null,{"$f":"ROUND((F11-E11)/E11,2)","v":{"$error":"#DIV/0!"}},null,{"$f":"ROUND((H11-E11)/E11,2)","v":{"$error":"#DIV/0!"}},{"$f":"ROUND((H11-E11)/(F11-E11),2)","v":{"$error":"#DIV/0!"}}]
["CNPI 2h","Percent increase of children in the identified community at (or above) the basic reading level.",null,null,null,null,{"$f":"ROUND((F12-E12)/E12,2)","v":{"$error":"#DIV/0!"}},null,{"$f":"ROUND((H12-E12)/E12,2)","v":{"$error":"#DIV/0!"}},{"$f":"ROUND((H12-E12)/(F12-E12),2)","v":{"$error":"#DIV/0!"}}]
["CNPI 2i","Percent increase of children in the identified community at (or above) the basic math level.",null,null,null,null,{"$error":"#DIV/0!"},null,{"$error":"#DIV/0!"},{"$error":"#DIV/0!"}]
["CNPI 2j","Percent increase in high school (or high school equivalency) graduation rate in the  identified community.",null,null,null,null,{"$error":"#DIV/0!"},null,{"$error":"#DIV/0!"},{"$error":"#DIV/0!"}]
["CNPI 2k","Percent increase of the rate of youth in the identified community  who attend post-secondary education.",null,null,null,null,{"$error":"#DIV/0!"},null,{"$error":"#DIV/0!"},{"$error":"#DIV/0!"}]
["CNPI 2l","Percent increase of the rate of youth in the identified community who graduate from post-secondary education. ",null,null,null,null,{"$error":"#DIV/0!"},null,{"$error":"#DIV/0!"},{"$error":"#DIV/0!"}]
["CNPI 2m","Percent increase of adults in the identified community who attend post-secondary education. ",null,null,null,null,{"$error":"#DIV/0!"},null,{"$error":"#DIV/0!"},{"$error":"#DIV/0!"}]
["CNPI 2n","Percent increase of adults in the  identified community who graduate from post-secondary education.",null,null,null,null,{"$error":"#DIV/0!"},null,{"$error":"#DIV/0!"},{"$error":"#DIV/0!"}]
["CNPI 2o","Percent increase in the adult literacy rate in the identified community. ",null,null,null,null,{"$error":"#DIV/0!"},null,{"$error":"#DIV/0!"},{"$error":"#DIV/0!"}]

{"sheet":"CNPI 3-Infrastructure-Assets","index":12,"n_rows":23,"n_cols":10,"rows_kept":23,"cut":false,"hidden":false,"merged":[[20,1,20,2],[21,1,21,2],[22,1,22,2],[0,1,0,9],[2,1,2,9],[9,1,9,9],[17,1,17,2],[18,1,18,2],[19,1,19,2]]}
["Subrecipient:",{"$f":"'CIS 1'!C1","v":0}]
["CNPI 3","Counts of Change for Infrastructure and Asset Building Indicators (CNPI 3)","I.)  Identified Community","II.)  Target \n#","1st quarter Results\n#","2nd quarter Results\n#","3rd quarter Results\n#","4th quarter Results\n#","Cumulative","IV.) Performance target accuracy \n(% auto calculated)"]
["CNPI 3a","Number of new accessible assets/resources created in the identified community:"]
["CNPI 3a.1","Commercial",null,null,null,null,null,null,{"$f":"E4+F4+G4+H4","v":0},{"$f":"I4/D4","v":{"$error":"#DIV/0!"}}]
["CNPI 3a.2","Financial",null,null,null,null,null,null,0,{"$error":"#DIV/0!"}]
["CNPI 3a.3","Technological/ Communications (e.g. broadband)",null,null,null,null,null,null,0,{"$error":"#DIV/0!"}]
["CNPI 3a.4","Transportation",null,null,null,null,null,null,0,{"$error":"#DIV/0!"}]
["CNPI 3a.5","Recreational (e.g. parks, gardens, libraries)",null,null,null,null,null,null,0,{"$error":"#DIV/0!"}]
["CNPI 3a.6","Other Public Assets/Physical Improvements",null,null,null,null,null,null,0,{"$error":"#DIV/0!"}]
["CNPI 3b","Number of existing assets/resources made accessible to the identified community:"]
["CNPI 3b.1","Commercial",null,null,null,null,null,null,0,{"$error":"#DIV/0!"}]
["CNPI 3b.2","Financial",null,null,null,null,null,null,0,{"$error":"#DIV/0!"}]
["CNPI 3b.3","Technological/ Communications (e.g. broadband)",null,null,null,null,null,null,0,{"$error":"#DIV/0!"}]
["CNPI 3b.4","Transportation",null,null,null,null,null,null,0,{"$error":"#DIV/0!"}]
["CNPI 3b.5","Recreational (e.g. parks, gardens, libraries)",null,null,null,null,null,null,0,{"$error":"#DIV/0!"}]
["CNPI 3b.6","Other Public Assets/Physical Improvements",null,null,null,null,null,null,0,{"$error":"#DIV/0!"}]
[]
["CNPI 3","Rates of Change for Infrastructure and Asset Building Indicators (CNPI 3)",null,"I.)  Identified Community","II.) Baseline existing starting point used for comparisons \n(%)","III.)  Target \n(%)","IV.)  Expected % change from baseline \n(Target %  auto calculated) ","V.)  Actual Results\n(%)","VI.)  Actual % change from baseline \n(% auto calculated) ","VII.) Performance target accuracy\n(% auto calculated)"]
["CNPI 3c","Percent decrease of abandoned or neglected buildings in the identified community.",null,null,null,null,{"$f":"ROUND((F19-E19)/E19,2)","v":{"$error":"#DIV/0!"}},null,{"$f":"ROUND((H19-E19)/E19,2)","v":{"$error":"#DIV/0!"}},{"$f":"ROUND((H19-E19)/(F19-E19),2)","v":{"$error":"#DIV/0!"}}]
["CNPI 3d","Percent decrease in emergency response time measured in minutes in the identified community. (EMT, Police, Fire, etc.).",null,null,null,null,{"$f":"ROUND((F20-E20)/E20,2)","v":{"$error":"#DIV/0!"}},null,{"$f":"ROUND((H20-E20)/E20,2)","v":{"$error":"#DIV/0!"}},{"$f":"ROUND((H20-E20)/(F20-E20),2)","v":{"$error":"#DIV/0!"}}]
["CNPI 3e","Percent decrease of predatory lenders and/or lending practices in the identified community.",null,null,null,null,{"$error":"#DIV/0!"},null,{"$error":"#DIV/0!"},{"$error":"#DIV/0!"}]
["CNPI 3f","Percent decrease of environmental threats to households (toxic soil, radon, lead, air quality, quality of drinking water, etc.) in the identified community.",null,null,null,null,{"$error":"#DIV/0!"},null,{"$error":"#DIV/0!"},{"$error":"#DIV/0!"}]
["CNPI 3g","Percent increase of transportation services in the identified community.",null,null,null,null,{"$error":"#DIV/0!"},null,{"$error":"#DIV/0!"},{"$error":"#DIV/0!"}]

{"sheet":"CNPI 4-Housing","index":13,"n_rows":13,"n_cols":10,"rows_kept":13,"cut":false,"hidden":false,"merged":[[0,1,0,9],[12,1,12,2],[7,1,7,2],[8,1,8,2],[9,1,9,2],[10,1,10,2],[11,1,11,2]]}
["Subrecipient:",{"$f":"'CIS 1'!C1","v":0}]
["CNPI 4"," Counts of Change for Housing Indicators (CNPI 4)","I.)  Identified Community","II.)  Target \n#","1st quarter Results\n#","2nd quarter Results\n#","3rd quarter Results\n#","4th quarter Results\n#","Cumulative","IV.) Performance target accuracy \n(% auto calculated)"]
["CNPI 4a","Number of safe and affordable housing units developed in the identified community (e.g. built or set aside units for people with low incomes).",null,null,null,null,null,null,{"$f":"E3+F3+G3+H3","v":0},{"$f":"I3/D3","v":{"$error":"#DIV/0!"}}]
["CNPI 4b","Number of safe and affordable housing units maintained  and/or improved through WAP or other rehabilitation efforts in the identified community. ",null,null,null,null,null,null,{"$f":"E4+F4+G4+H4","v":0},{"$f":"I4/D4","v":{"$error":"#DIV/0!"}}]
["CNPI 4c","Number of shelter beds created in the identified community. ",null,null,null,null,null,null,0,{"$error":"#DIV/0!"}]
["CNPI 4d","Number of shelter beds maintained in the identified community. ",null,null,null,null,null,null,0,{"$error":"#DIV/0!"}]
[]
["CNPI 4","Rates of Change for Housing Indicators (CNPI 4)",null,"I.)  Identified Community","II.) Baseline existing starting point used for comparisons \n(%)","III.)  Target \n(%)","IV.)  Expected % change from baseline \n(Target %  auto calculated) ","V.)  Actual Results\n(%)","VI.)  Actual % change from baseline \n(% auto calculated) ","VII.) Performance target accuracy\n(% auto calculated)"]
["CNPI 4e","Percent decrease in the rate of homelessness in the identified community. ",null,null,null,null,{"$f":"ROUND((F9-E9)/E9,2)","v":{"$error":"#DIV/0!"}},null,{"$f":"ROUND((H9-E9)/E9,2)","v":{"$error":"#DIV/0!"}},{"$f":"ROUND((H9-E9)/(F9-E9),2)","v":{"$error":"#DIV/0!"}}]
["CNPI 4f","Percent decrease in the foreclosure rate in the identified community.",null,null,null,null,{"$f":"ROUND((F10-E10)/E10,2)","v":{"$error":"#DIV/0!"}},null,{"$f":"ROUND((H10-E10)/E10,2)","v":{"$error":"#DIV/0!"}},{"$f":"ROUND((H10-E10)/(F10-E10),2)","v":{"$error":"#DIV/0!"}}]
["CNPI 4g","Percent increase in the rate of home ownership of people with low incomes in the identified community.",null,null,null,null,{"$error":"#DIV/0!"},null,{"$error":"#DIV/0!"},{"$error":"#DIV/0!"}]
["CNPI 4h","Percent increase of affordable housing in the identified community.",null,null,null,null,{"$error":"#DIV/0!"},null,{"$error":"#DIV/0!"},{"$error":"#DIV/0!"}]
["CNPI 4i","Percent increase of shelter beds in the identified community.",null,null,null,null,{"$error":"#DIV/0!"},null,{"$error":"#DIV/0!"},{"$error":"#DIV/0!"}]

{"sheet":"CNPI 5-Health","index":14,"n_rows":28,"n_cols":10,"rows_kept":28,"cut":false,"hidden":false,"merged":[[0,1,0,9],[8,1,8,2],[9,1,9,2],[10,1,10,2],[11,1,11,2],[12,1,12,2],[13,1,13,2],[14,1,14,2],[15,1,15,2],[16,1,16,2],[17,1,17,2],[18,1,18,2],[19,1,19,2],[20,1,20,2],[21,1,21,2],[27,1,27,2],[22,1,22,2],[23,1,23,2],[24,1,24,2],[25,1,25,2],[26,1,26,2]]}
["Subrecipient:",{"$f":"'CIS 1'!C1","v":0}]
["CNPI 5","Counts of Change for Health and Social/Behavioral Indicators (CNPI 5)","I.)  Identified Community","II.)  Target \n#","1st quarter Results\n#","2nd quarter Results\n#","3rd quarter Results\n#","4th quarter Results\n#","Cumulative","IV.) Performance target accuracy \n(% auto calculated)"]
["CNPI 5a","Number of accessible and affordable physical health assets or resources created in the identified community. ",null,null,null,null,null,null,{"$f":"E3+F3+G3+H3","v":0},{"$f":"I3/D3","v":{"$error":"#DIV/0!"}}]
["CNPI 5b","Number of accessible and affordable behavioral and mental health assets or resources created in the identified community.  ",null,null,null,null,null,null,{"$f":"E4+F4+G4+H4","v":0},{"$f":"I4/D4","v":{"$error":"#DIV/0!"}}]
["CNPI 5c","Number of public safety assets and resources created in the identified community.   ",null,null,null,null,null,null,0,{"$error":"#DIV/0!"}]
["CNPI 5d","Number of accessible and affordable healthy food resources created in the identified community.",null,null,null,null,null,null,0,{"$error":"#DIV/0!"}]
["CNPI 5e","Number of activities designed to improve police and community relations within the identified community.",null,null,null,null,null,null,{"$f":"E7+F7+G7+H7","v":0},{"$f":"I7/D7","v":{"$error":"#DIV/0!"}}]
[]
["CNPI 5","Rates of Change for Physical Health, Wellbeing, and Development Indicators (CNPI 5)",null,"I.)  Identified Community","II.) Baseline existing starting point used for comparisons \n(%)","III.)  Target \n(%)","IV.)  Expected % change from baseline \n(Target %  auto calculated) ","V.)  Actual Results\n(%)","VI.)  Actual % change from baseline \n(% auto calculated) ","VII.) Performance target accuracy\n(% auto calculated)"]
["CNPI 5f","Percent decrease in infant mortality rate in the identified community.",null,null,null,null,{"$f":"ROUND((F10-E10)/E10,2)","v":{"$error":"#DIV/0!"}},null,{"$f":"ROUND((H10-E10)/E10,2)","v":{"$error":"#DIV/0!"}},{"$f":"ROUND((H10-E10)/(F10-E10),2)","v":{"$error":"#DIV/0!"}}]
["CNPI 5g","Percent decrease in childhood obesity rate in the identified community. ",null,null,null,null,{"$f":"ROUND((F11-E11)/E11,2)","v":{"$error":"#DIV/0!"}},null,{"$f":"ROUND((H11-E11)/E11,2)","v":{"$error":"#DIV/0!"}},{"$f":"ROUND((H11-E11)/(F11-E11),2)","v":{"$error":"#DIV/0!"}}]
["CNPI 5h","Percent decrease in adult obesity rate in the identified community.",null,null,null,null,{"$error":"#DIV/0!"},null,{"$error":"#DIV/0!"},{"$error":"#DIV/0!"}]
["CNPI 5i","Percent increase in child immunization rate in the identified community. ",null,null,null,null,{"$error":"#DIV/0!"},null,{"$error":"#DIV/0!"},{"$error":"#DIV/0!"}]
["CNPI 5j","Percent decrease in uninsured families in the identified community. ",null,null,null,null,{"$error":"#DIV/0!"},null,{"$error":"#DIV/0!"},{"$error":"#DIV/0!"}]
["CNPI 5","Rates of Change for Behavioral and Mental Health, Emotional Wellbeing, and Development Indicators (CNPI 5)",null,"I.)  Identified Community","II.) Baseline existing starting point used for comparisons \n(%)","III.)  Target \n(%)","IV.)  Expected % change from baseline \n(Target %  auto calculated) ","V.)  Actual Results\n(%)","VI.)  Actual % change from baseline \n(% auto calculated) ","VII.) Performance target accuracy\n(% auto calculated)"]
["CNPI 5k","Percent decrease in the teen pregnancy rate in the identified community.",null,null,null,null,{"$f":"ROUND((F16-E16)/E16,2)","v":{"$error":"#DIV/0!"}},null,{"$f":"ROUND((H16-E16)/E16,2)","v":{"$error":"#DIV/0!"}},{"$f":"ROUND((H16-E16)/(F16-E16),2)","v":{"$error":"#DIV/0!"}}]
["CNPI 5l","Percent decrease in unplanned pregnancies in the identified community.",null,null,null,null,{"$f":"ROUND((F17-E17)/E17,2)","v":{"$error":"#DIV/0!"}},null,{"$f":"ROUND((H17-E17)/E17,2)","v":{"$error":"#DIV/0!"}},{"$f":"ROUND((H17-E17)/(F17-E17),2)","v":{"$error":"#DIV/0!"}}]
["CNPI 5m","Percent decrease in substance abuse rate in the identified community.(e.g. cigarettes, prescription drugs, narcotics, alcohol). ",null,null,null,null,{"$error":"#DIV/0!"},null,{"$error":"#DIV/0!"},{"$error":"#DIV/0!"}]
["CNPI 5n","Percent decrease in domestic violence rate in the identified community.",null,null,null,null,{"$error":"#DIV/0!"},null,{"$error":"#DIV/0!"},{"$error":"#DIV/0!"}]
["CNPI 5o","Percent decrease in the child abuse rate in the identified community.",null,null,null,null,{"$error":"#DIV/0!"},null,{"$error":"#DIV/0!"},{"$error":"#DIV/0!"}]
["CNPI 5p","Percent decrease in the child neglect rate in the identified community.",null,null,null,null,{"$error":"#DIV/0!"},null,{"$error":"#DIV/0!"},{"$error":"#DIV/0!"}]
["CNPI 5q","Percent decrease in the elder abuse rate in the identified community. ",null,null,null,null,{"$error":"#DIV/0!"},null,{"$error":"#DIV/0!"},{"$error":"#DIV/0!"}]
["CNPI 5r","Percent decrease in the elder neglect rate in the identified community. ",null,null,null,null,{"$error":"#DIV/0!"},null,{"$error":"#DIV/0!"},{"$error":"#DIV/0!"}]
["CNPI 5","Rates of Change for Public Safety Indicators (CNPI 5)",null,"I.)  Identified Community","II.) Baseline existing starting point used for comparisons \n(%)","III.)  Target \n(%)","IV.)  Expected % change from baseline \n(Target %  auto calculated) ","V.)  Actual Results\n(%)","VI.)  Actual % change from baseline \n(% auto calculated) ","VII.) Performance target accuracy\n(% auto calculated)"]
["CNPI 5s","Percent decrease in recidivism rate in the identified community.",null,null,null,null,{"$f":"ROUND((F25-E25)/E25,2)","v":{"$error":"#DIV/0!"}},null,{"$f":"ROUND((H25-E25)/E25,2)","v":{"$error":"#DIV/0!"}},{"$f":"ROUND((H25-E25)/(F25-E25),2)","v":{"$error":"#DIV/0!"}}]
["CNPI 5t","Percent decrease in non-violent crime rate in the identified community.",null,null,null,null,{"$f":"ROUND((F26-E26)/E26,2)","v":{"$error":"#DIV/0!"}},null,{"$f":"ROUND((H26-E26)/E26,2)","v":{"$error":"#DIV/0!"}},{"$f":"ROUND((H26-E26)/(F26-E26),2)","v":{"$error":"#DIV/0!"}}]
["CNPI 5u","Percent decrease in violent crime rate in the identified community.",null,null,null,null,{"$error":"#DIV/0!"},null,{"$error":"#DIV/0!"},{"$error":"#DIV/0!"}]
["CNPI 5v","Percent decrease in teens involved with the juvenile court system in the identified community.",null,null,null,null,{"$error":"#DIV/0!"},null,{"$error":"#DIV/0!"},{"$error":"#DIV/0!"}]

{"sheet":"CNPI 6-Civic Engagement","index":15,"n_rows":8,"n_cols":9,"rows_kept":8,"cut":false,"hidden":false,"merged":[[0,1,0,8]]}
["Subrecipient:",{"$f":"'CIS 1'!C1","v":0}]
["CNPI 6","Rates of Change for Civic Engagement and Community Involvement Indicators \nGoal 2 (CNPI 6)","I.)  Identified Community","II.) Baseline existing starting point used for comparisons \n(%)","III.)  Target \n(%)","IV.)  Expected % change from baseline \n(Target %  auto calculated) ","V.)  Actual Results\n(%)","VI.)  Actual % change from baseline \n(% auto calculated) ","VII.) Performance target accuracy\n(% auto calculated)"]
["CNPI 6 G2a","Percent increase of donated time to support the CSBG Eligible Entity's delivery of services and/or implementation of strategies to address conditions of poverty in the identified community. ",null,null,null,{"$f":"ROUND((E3-D3)/D3,2)","v":{"$error":"#DIV/0!"}},null,{"$f":"ROUND((G3-D3)/D3,2)","v":{"$error":"#DIV/0!"}},{"$f":"ROUND((G3-D3)/(E3-D3),2)","v":{"$error":"#DIV/0!"}}]
["CNPI 6 G2b","Percent increase of donated resources to support the CSBG Eligible Entity's delivery of services and/or implementation of strategies to address conditions of poverty in the identified community. ",null,null,null,{"$f":"ROUND((E4-D4)/D4,2)","v":{"$error":"#DIV/0!"}},null,{"$f":"ROUND((G4-D4)/D4,2)","v":{"$error":"#DIV/0!"}},{"$f":"ROUND((G4-D4)/(E4-D4),2)","v":{"$error":"#DIV/0!"}}]
["CNPI 6 G2c","Percent increase of people participating in public hearings, policy forums, community planning, or other advisory boards related to the CSBG Eligible Entity's delivery of service and/or implementation of strategies to address conditions of poverty in the identified community.",null,null,null,{"$error":"#DIV/0!"},null,{"$error":"#DIV/0!"},{"$error":"#DIV/0!"}]
["CNPI 6","Rates of Change for Civic Engagement and Community Involvement Indicators\nGoal 3 (CNPI 6)","I.)  Identified Community","II.) Baseline existing starting point used for comparisons \n(%)","III.)  Target \n(%)","IV.)  Expected % change from baseline \n(Target %  auto calculated) ","V.)  Actual Results\n(%)","VI.)  Actual % change from baseline \n(% auto calculated) ","VII.) Performance target accuracy\n(% auto calculated)"]
["CNPI 6 G3a ","Percent increase of people with low incomes who support the CSBG Eligible Entity's delivery of service and/or implementation of strategies to address conditions of poverty in the identified community. ",null,null,null,{"$f":"ROUND((E7-D7)/D7,2)","v":{"$error":"#DIV/0!"}},null,{"$f":"ROUND((G7-D7)/D7,2)","v":{"$error":"#DIV/0!"}},{"$f":"ROUND((G7-D7)/(E7-D7),2)","v":{"$error":"#DIV/0!"}}]
["CNPI 6 G3b","Percent increase of people with low incomes who acquire and maintain leadership roles with the CSBG Eligible Entity or other organizations within the identified community. ",null,null,null,{"$f":"ROUND((E8-D8)/D8,2)","v":{"$error":"#DIV/0!"}},null,{"$f":"ROUND((G8-D8)/D8,2)","v":{"$error":"#DIV/0!"}},{"$f":"ROUND((G8-D8)/(E8-D8),2)","v":{"$error":"#DIV/0!"}}]